[Event "*** Titled Tuesday 3|2 Blitz (Early)"]
[Site "Chess.com"]
[Date "2017.01.03"]
[Round "5"]
[White "Morshynska"]
[Black "BjarkeSahl"]
[Result "0-1"]
[WhiteElo "2096"]
[BlackElo "2230"]
[TimeControl "180+2"]
[EndTime "12:02:51 PST"]
[Termination "BjarkeSahl won on time"]

1. e4 {[%clk 0:03:01.9]} 1... c5 {[%clk 0:02:52.6]} 2. Nf3 {[%clk 0:03:01.7]}
2... e6 {[%clk 0:02:53.9]} 3. d4 {[%clk 0:02:59.8]} 3... cxd4 {[%clk 0:02:55]}
4. Nxd4 {[%clk 0:03:01.7]} 4... Nf6 {[%clk 0:02:56.5]} 5. Nc3 {[%clk 0:02:51]}
5... Bb4 {[%clk 0:02:53.8]} 6. e5 {[%clk 0:02:46.1]} 6... Nd5 {[%clk 0:02:54.1]}
7. Bd2 {[%clk 0:02:43.5]} 7... Nxc3 {[%clk 0:02:54.7]} 8. bxc3 {[%clk
0:02:45.4]} 8... Be7 {[%clk 0:02:56.6]} 9. Bd3 {[%clk 0:02:45.8]} 9... Nc6
{[%clk 0:02:37.5]} 10. Nxc6 {[%clk 0:02:13.1]} 10... bxc6 {[%clk 0:02:27.1]} 11.
Qg4 {[%clk 0:02:12.1]} 11... g6 {[%clk 0:02:25]} 12. O-O {[%clk 0:02:04.3]}
12... Qa5 {[%clk 0:02:23]} 13. Rfe1 {[%clk 0:01:58.2]} 13... Ba6 {[%clk
0:02:20.9]} 14. Qe2 {[%clk 0:01:35.4]} 14... Bxd3 {[%clk 0:02:19.8]} 15. Qxd3
{[%clk 0:01:33.5]} 15... Qc7 {[%clk 0:02:08.9]} 16. c4 {[%clk 0:01:30.2]} 16...
O-O {[%clk 0:02:08.7]} 17. Bc3 {[%clk 0:00:50.8]} 17... Rab8 {[%clk 0:02:02.3]}
18. Rab1 {[%clk 0:00:44.3]} 18... a5 {[%clk 0:01:58.8]} 19. g3 {[%clk
0:00:27.9]} 19... Bb4 {[%clk 0:01:59]} 20. h4 {[%clk 0:00:20.4]} 20... h5 {[%clk
0:01:57.2]} 21. Kh2 {[%clk 0:00:20.4]} 21... c5 {[%clk 0:01:45.9]} 22. Red1
{[%clk 0:00:20.8]} 22... Rb7 {[%clk 0:01:40]} 23. Ba1 {[%clk 0:00:11]} 23... a4
{[%clk 0:01:37.2]} 24. a3 {[%clk 0:00:10.1]} 24... Ba5 {[%clk 0:01:36.3]} 25.
Rxb7 {[%clk 0:00:12]} 25... Qxb7 {[%clk 0:01:35.6]} 26. Qxd7 {[%clk 0:00:13.9]}
26... Qf3 {[%clk 0:01:34.6]} 27. Kg1 {[%clk 0:00:10.7]} 27... Qxa3 {[%clk
0:01:34.7]} 28. Qd3 {[%clk 0:00:08.6]} 28... Qxd3 {[%clk 0:01:31.9]} 29. Rxd3
{[%clk 0:00:10.5]} 29... Bb4 {[%clk 0:01:28.1]} 30. Kf1 {[%clk 0:00:06.5]} 30...
Ra8 {[%clk 0:01:23.1]} 31. Ke2 {[%clk 0:00:07.1]} 31... a3 {[%clk 0:01:22.8]}
32. f4 {[%clk 0:00:07.4]} 32... Ra4 {[%clk 0:01:20.8]} 33. Rd1 {[%clk
0:00:07.7]} 33... Ba5 {[%clk 0:01:20.1]} 34. Kd3 {[%clk 0:00:08.9]} 34... Kf8
{[%clk 0:01:18.3]} 35. Rb1 {[%clk 0:00:07.9]} 35... Rb4 {[%clk 0:01:17.4]} 36.
Rd1 {[%clk 0:00:03.2]} 36... Ke7 {[%clk 0:01:15.9]} 37. Bc3 {[%clk 0:00:04]}
37... Ra4 {[%clk 0:01:16.4]} 38. Bxa5 {[%clk 0:00:05.9]} 38... Rxa5 {[%clk
0:01:17.9]} 39. Kc3 {[%clk 0:00:07]} 39... f6 {[%clk 0:01:07]} 40. exf6+ {[%clk
0:00:06.9]} 40... Kxf6 {[%clk 0:01:07.3]} 41. Kb3 {[%clk 0:00:08.4]} 41... Kf5
{[%clk 0:01:04.6]} 42. Ka2 {[%clk 0:00:06.6]} 42... Ra4 {[%clk 0:01:05.7]} 43.
Rd3 {[%clk 0:00:03.1]} 43... Rxc4 {[%clk 0:01:04.3]} 44. Kxa3 {[%clk 0:00:03.1]}
44... Rxc2 {[%clk 0:01:05]} 45. Re3 {[%clk 0:00:02.2]} 45... Rg2 {[%clk
0:00:44.1]} 46. Re5+ {[%clk 0:00:02.9]} 46... Kf6 {[%clk 0:00:45.7]} 47. Re3
{[%clk 0:00:03.3]} 47... Rd2 {[%clk 0:00:43.8]} 48. Kb3 {[%clk 0:00:03.7]} 48...
Rd5 {[%clk 0:00:44.4]} 49. Kc4 {[%clk 0:00:04.4]} 49... Rf5 {[%clk 0:00:45.9]}
50. Rd3 {[%clk 0:00:03.7]} 50... e5 {[%clk 0:00:45.6]} 51. fxe5+ {[%clk
0:00:05.6]} 51... Rxe5 {[%clk 0:00:46.1]} 52. Rf3+ {[%clk 0:00:06.3]} 52... Ke6
{[%clk 0:00:44.3]} 53. Rd3 {[%clk 0:00:05.8]} 53... Kf5 {[%clk 0:00:44.3]} 0-1

[Event "*** Titled Tuesday 3|2 Blitz (Early)"]
[Site "Chess.com"]
[Date "2017.01.03"]
[Round "5"]
[White "petrpalachev"]
[Black "Blitzstream"]
[Result "1/2-1/2"]
[WhiteElo "2414"]
[BlackElo "2510"]
[TimeControl "180+2"]
[EndTime "12:03:40 PST"]
[Termination "Game drawn by repetition"]

1. Nf3 {[%clk 0:03:02]} 1... Nf6 {[%clk 0:02:59.7]} 2. d4 {[%clk 0:03:02.9]}
2... d5 {[%clk 0:02:58.5]} 3. c4 {[%clk 0:03:03.5]} 3... c6 {[%clk 0:02:58.8]}
4. e3 {[%clk 0:03:02.7]} 4... Bf5 {[%clk 0:02:59.9]} 5. Nc3 {[%clk 0:03:03.4]}
5... e6 {[%clk 0:03:01]} 6. Nh4 {[%clk 0:03:04.7]} 6... Bg6 {[%clk 0:03:02.2]}
7. Qb3 {[%clk 0:03:04.5]} 7... Qb6 {[%clk 0:03:02.4]} 8. Nxg6 {[%clk 0:03:06]}
8... hxg6 {[%clk 0:03:02.2]} 9. Bd2 {[%clk 0:03:06.8]} 9... Nbd7 {[%clk
0:03:02.8]} 10. g3 {[%clk 0:03:07.8]} 10... Be7 {[%clk 0:03:00.6]} 11. Qc2
{[%clk 0:03:07.2]} 11... Ng4 {[%clk 0:02:42.1]} 12. h3 {[%clk 0:03:03.3]} 12...
f5 {[%clk 0:02:42.7]} 13. Bg2 {[%clk 0:03:02.9]} 13... Ngf6 {[%clk 0:02:42.4]}
14. b3 {[%clk 0:02:56.1]} 14... Bb4 {[%clk 0:02:42.2]} 15. O-O {[%clk
0:02:56.3]} 15... O-O {[%clk 0:02:39.2]} 16. a3 {[%clk 0:02:53.1]} 16... Bxc3
{[%clk 0:02:39.8]} 17. Bxc3 {[%clk 0:02:54]} 17... Ne4 {[%clk 0:02:41.3]} 18.
Be1 {[%clk 0:02:51.6]} 18... Rac8 {[%clk 0:02:36.4]} 19. c5 {[%clk 0:02:39.9]}
19... Qc7 {[%clk 0:02:30.8]} 20. Kh2 {[%clk 0:02:40]} 20... g5 {[%clk
0:02:30.2]} 21. f3 {[%clk 0:02:41.2]} 21... Nef6 {[%clk 0:02:30.6]} 22. Kg1
{[%clk 0:02:39.2]} 22... g6 {[%clk 0:02:05.9]} 23. f4 {[%clk 0:02:32.7]} 23...
gxf4 {[%clk 0:01:54.5]} 24. exf4 {[%clk 0:02:26.5]} 24... Ne4 {[%clk 0:01:55.3]}
25. g4 {[%clk 0:02:17.7]} 25... Ndf6 {[%clk 0:01:55.5]} 26. g5 {[%clk
0:02:17.5]} 26... Nh5 {[%clk 0:01:52.7]} 27. Qc1 {[%clk 0:02:17.6]} 27... Qg7
{[%clk 0:01:44.4]} 28. Qe3 {[%clk 0:02:02.9]} 28... b6 {[%clk 0:01:22.1]} 29. b4
{[%clk 0:02:00.3]} 29... bxc5 {[%clk 0:01:10.9]} 30. bxc5 {[%clk 0:02:02.2]}
30... Rb8 {[%clk 0:01:11.6]} 31. Bb4 {[%clk 0:02:00.6]} 31... Qc7 {[%clk
0:01:08.5]} 32. Rab1 {[%clk 0:01:47.1]} 32... a5 {[%clk 0:01:02.2]} 33. Bxe4
{[%clk 0:01:46.5]} 33... fxe4 {[%clk 0:00:56.5]} 34. Bd2 {[%clk 0:01:48]} 34...
Rxb1 {[%clk 0:00:57]} 35. Rxb1 {[%clk 0:01:49.9]} 35... Nxf4 {[%clk 0:00:53.9]}
36. Rf1 {[%clk 0:01:49.5]} 36... Nd3 {[%clk 0:00:47.8]} 37. Rxf8+ {[%clk
0:01:47.3]} 37... Kxf8 {[%clk 0:00:49.7]} 38. Kg2 {[%clk 0:01:43.4]} 38... a4
{[%clk 0:00:35.2]} 39. Qe2 {[%clk 0:01:41.8]} 39... Qf7 {[%clk 0:00:33.1]} 40.
Be3 {[%clk 0:01:28]} 40... Qf5 {[%clk 0:00:25.2]} 41. Qd1 {[%clk 0:01:10.6]}
41... e5 {[%clk 0:00:22.1]} 42. Qxa4 {[%clk 0:00:51.9]} 42... Qf3+ {[%clk
0:00:22.6]} 43. Kh2 {[%clk 0:00:53.5]} 43... Qe2+ {[%clk 0:00:19.7]} 44. Kh1
{[%clk 0:00:53.7]} 44... Qf1+ {[%clk 0:00:20.5]} 45. Kh2 {[%clk 0:00:54.8]}
45... Qe2+ {[%clk 0:00:18.2]} 46. Kh1 {[%clk 0:00:55.9]} 46... Qf3+ {[%clk
0:00:07.8]} 47. Kh2 {[%clk 0:00:55.9]} 47... Qe2+ {[%clk 0:00:04.5]} 48. Kh1
{[%clk 0:00:56.6]} 48... Qxe3 {[%clk 0:00:06]} 49. Qa8+ {[%clk 0:00:56.7]} 49...
Ke7 {[%clk 0:00:07.4]} 50. Qb7+ {[%clk 0:00:55.3]} 50... Ke6 {[%clk 0:00:08.5]}
51. Qc8+ {[%clk 0:00:55.7]} 51... Ke7 {[%clk 0:00:09.1]} 52. Qc7+ {[%clk
0:00:52.7]} 52... Kf8 {[%clk 0:00:09.5]} 53. Qd8+ {[%clk 0:00:51.2]} 53... Kf7
{[%clk 0:00:11.1]} 54. Qf6+ {[%clk 0:00:51.8]} 54... Ke8 {[%clk 0:00:11.9]} 55.
Qxg6+ {[%clk 0:00:52.4]} 55... Kd7 {[%clk 0:00:13]} 56. Qd6+ {[%clk 0:00:53.9]}
56... Ke8 {[%clk 0:00:12.9]} 57. Qxc6+ {[%clk 0:00:52.8]} 57... Kf7 {[%clk
0:00:13.8]} 58. Qf6+ {[%clk 0:00:53]} 58... Ke8 {[%clk 0:00:14.7]} 59. Qe6+
{[%clk 0:00:52.4]} 59... Kf8 {[%clk 0:00:14.7]} 60. Qf6+ {[%clk 0:00:51.2]}
60... Kg8 {[%clk 0:00:16]} 61. Qd8+ {[%clk 0:00:46.4]} 61... Kg7 {[%clk
0:00:13.1]} 62. Qe7+ {[%clk 0:00:42.8]} 62... Kg8 {[%clk 0:00:13.5]} 63. Qe8+
{[%clk 0:00:39.9]} 63... Kg7 {[%clk 0:00:14.5]} 64. Qe7+ {[%clk 0:00:41.1]}
64... Kg8 {[%clk 0:00:15.4]} 65. Qe8+ {[%clk 0:00:21.4]} 65... Kg7 {[%clk
0:00:16.5]} 66. Qe7+ {[%clk 0:00:22.7]} 66... Kg8 {[%clk 0:00:17.7]} 67. Qe6+
{[%clk 0:00:22.8]} 67... Kg7 {[%clk 0:00:18.6]} 68. Qe7+ {[%clk 0:00:21.8]}
68... Kg8 {[%clk 0:00:20]} 69. Qe8+ {[%clk 0:00:21.3]} 69... Kg7 {[%clk
0:00:21.4]} 70. Qe7+ {[%clk 0:00:22.5]} 1/2-1/2

[Event "*** Titled Tuesday 3|2 Blitz (Early)"]
[Site "Chess.com"]
[Date "2017.01.03"]
[Round "5"]
[White "Aygehovit1992"]
[Black "iturrizaga"]
[Result "1/2-1/2"]
[WhiteElo "2469"]
[BlackElo "2636"]
[TimeControl "180+2"]
[EndTime "12:03:44 PST"]
[Termination "Game drawn by repetition"]

1. e4 {[%clk 0:03:02]} 1... c5 {[%clk 0:03:01.1]} 2. Nf3 {[%clk 0:03:02.5]} 2...
g6 {[%clk 0:03:02.6]} 3. d4 {[%clk 0:02:59.8]} 3... cxd4 {[%clk 0:03:04.5]} 4.
Qxd4 {[%clk 0:03:00.6]} 4... Nf6 {[%clk 0:03:05.7]} 5. Nc3 {[%clk 0:02:55.3]}
5... Nc6 {[%clk 0:03:07.1]} 6. Qa4 {[%clk 0:02:55.9]} 6... d6 {[%clk 0:03:07.7]}
7. e5 {[%clk 0:02:56.8]} 7... dxe5 {[%clk 0:03:09.6]} 8. Nxe5 {[%clk 0:02:58.3]}
8... Bd7 {[%clk 0:03:11.2]} 9. Nxd7 {[%clk 0:02:58.3]} 9... Qxd7 {[%clk
0:03:13.1]} 10. Be2 {[%clk 0:02:51.4]} 10... Bg7 {[%clk 0:03:14.2]} 11. Be3
{[%clk 0:02:51.2]} 11... O-O {[%clk 0:03:15.4]} 12. Rd1 {[%clk 0:02:52.2]} 12...
Qf5 {[%clk 0:03:13.5]} 13. O-O {[%clk 0:02:46.2]} 13... a6 {[%clk 0:03:14.2]}
14. Qb3 {[%clk 0:02:25.3]} 14... Rab8 {[%clk 0:03:01]} 15. Nd5 {[%clk
0:02:14.8]} 15... Ng4 {[%clk 0:02:41.3]} 16. Bxg4 {[%clk 0:01:42.1]} 16... Qxg4
{[%clk 0:02:43.2]} 17. h3 {[%clk 0:01:43.7]} 17... Qf5 {[%clk 0:02:37.8]} 18. c3
{[%clk 0:01:29.9]} 18... b5 {[%clk 0:02:31.3]} 19. Nb4 {[%clk 0:01:15.1]} 19...
Na5 {[%clk 0:01:51.5]} 20. Qd5 {[%clk 0:01:07.2]} 20... Nc4 {[%clk 0:01:52.3]}
21. Qxf5 {[%clk 0:01:05]} 21... gxf5 {[%clk 0:01:54.2]} 22. Bc1 {[%clk
0:01:06.3]} 22... a5 {[%clk 0:01:40.4]} 23. Nc6 {[%clk 0:01:05.8]} 23... Rb7
{[%clk 0:01:41.4]} 24. b3 {[%clk 0:01:05.6]} 24... Nd6 {[%clk 0:01:37.4]} 25.
Nxe7+ {[%clk 0:01:01.5]} 25... Rxe7 {[%clk 0:01:37.1]} 26. Rxd6 {[%clk
0:01:03.4]} 26... Bxc3 {[%clk 0:01:29]} 27. Rd5 {[%clk 0:01:03.2]} 27... Re5
{[%clk 0:01:27.7]} 28. Rfd1 {[%clk 0:01:03.1]} 28... Rfe8 {[%clk 0:01:26.7]} 29.
Be3 {[%clk 0:00:59.5]} 29... a4 {[%clk 0:01:14.9]} 30. Rxe5 {[%clk 0:00:50.6]}
30... Bxe5 {[%clk 0:01:14.1]} 31. Rd5 {[%clk 0:00:47.9]} 31... axb3 {[%clk
0:00:51.6]} 32. axb3 {[%clk 0:00:47.7]} 32... f4 {[%clk 0:00:53.2]} 33. Bd2
{[%clk 0:00:34]} 33... f6 {[%clk 0:00:53.9]} 34. Kf1 {[%clk 0:00:27.6]} 34...
Rb8 {[%clk 0:00:43.6]} 35. Ke2 {[%clk 0:00:28.6]} 35... Kf7 {[%clk 0:00:44]} 36.
Rd7+ {[%clk 0:00:25]} 36... Kg6 {[%clk 0:00:44.6]} 37. Kf3 {[%clk 0:00:23.3]}
37... Rc8 {[%clk 0:00:35.9]} 38. Rd5 {[%clk 0:00:08.5]} 38... Rc2 {[%clk
0:00:32.2]} 39. Bxf4 {[%clk 0:00:05.3]} 39... Rc3+ {[%clk 0:00:20.8]} 40. Ke4
{[%clk 0:00:06.5]} 40... Bxf4 {[%clk 0:00:21.1]} 41. Kxf4 {[%clk 0:00:07.7]}
41... Rxb3 {[%clk 0:00:22.8]} 42. g4 {[%clk 0:00:08.5]} 42... Rxh3 {[%clk
0:00:15.2]} 43. Rxb5 {[%clk 0:00:08.9]} 43... Ra3 {[%clk 0:00:17]} 44. f3 {[%clk
0:00:10]} 44... Ra4+ {[%clk 0:00:16.9]} 45. Kg3 {[%clk 0:00:11.3]} 45... Ra1
{[%clk 0:00:18.8]} 46. f4 {[%clk 0:00:12]} 46... Rg1+ {[%clk 0:00:20.3]} 47. Kf3
{[%clk 0:00:13.3]} 47... Rf1+ {[%clk 0:00:21.6]} 48. Kg3 {[%clk 0:00:14.7]}
48... Rg1+ {[%clk 0:00:23]} 49. Kf3 {[%clk 0:00:16.1]} 49... h6 {[%clk
0:00:24.4]} 50. Rd5 {[%clk 0:00:15.1]} 50... Rf1+ {[%clk 0:00:25.3]} 51. Kg3
{[%clk 0:00:16]} 51... Ra1 {[%clk 0:00:26.9]} 52. Rd7 {[%clk 0:00:16.6]} 52...
h5 {[%clk 0:00:26.9]} 53. f5+ {[%clk 0:00:16]} 53... Kh6 {[%clk 0:00:28.1]} 54.
Rf7 {[%clk 0:00:15.3]} 54... Rg1+ {[%clk 0:00:28.7]} 55. Kf2 {[%clk 0:00:13.5]}
55... Rxg4 {[%clk 0:00:28.6]} 56. Rxf6+ {[%clk 0:00:14.6]} 56... Kg5 {[%clk
0:00:30.5]} 57. Rg6+ {[%clk 0:00:15.5]} 57... Kxf5 {[%clk 0:00:29.7]} 58. Rxg4
{[%clk 0:00:15.3]} 58... hxg4 {[%clk 0:00:31.3]} 59. Kg3 {[%clk 0:00:16.4]}
59... Kg5 {[%clk 0:00:32.8]} 60. Kg2 {[%clk 0:00:17.8]} 60... Kf4 {[%clk
0:00:34.7]} 61. Kf2 {[%clk 0:00:19.1]} 61... g3+ {[%clk 0:00:36.6]} 62. Kg2
{[%clk 0:00:20.5]} 62... Kg4 {[%clk 0:00:38.5]} 63. Kg1 {[%clk 0:00:20.7]} 63...
Kh4 {[%clk 0:00:40.4]} 64. Kg2 {[%clk 0:00:21.7]} 64... Kg4 {[%clk 0:00:41.9]}
65. Kg1 {[%clk 0:00:23]} 65... Kf3 {[%clk 0:00:43.8]} 66. Kf1 {[%clk 0:00:24.1]}
66... Kf4 {[%clk 0:00:45.7]} 67. Kg2 {[%clk 0:00:24.9]} 67... Kg4 {[%clk
0:00:47.2]} 68. Kg1 {[%clk 0:00:26.1]} 68... Kf4 {[%clk 0:00:48.2]} 69. Kg2
{[%clk 0:00:26.9]} 69... Kg4 {[%clk 0:00:49]} 70. Kg1 {[%clk 0:00:28.1]} 70...
Kf3 {[%clk 0:00:50.9]} 71. Kf1 {[%clk 0:00:29.1]} 71... Ke3 {[%clk 0:00:52.6]}
72. Kg2 {[%clk 0:00:30.1]} 72... Kf4 {[%clk 0:00:54.5]} 73. Kg1 {[%clk
0:00:30.6]} 73... Kg4 {[%clk 0:00:55.9]} 74. Kg2 {[%clk 0:00:31.7]} 74... Kh4
{[%clk 0:00:57.6]} 75. Kg1 {[%clk 0:00:31.1]} 75... Kh3 {[%clk 0:00:59.5]} 76.
Kh1 {[%clk 0:00:32.2]} 76... Kg4 {[%clk 0:01:01.4]} 77. Kg2 {[%clk 0:00:33.1]}
77... Kf4 {[%clk 0:01:02.9]} 78. Kg1 {[%clk 0:00:33.6]} 78... Kf3 {[%clk
0:01:04.8]} 79. Kf1 {[%clk 0:00:34.6]} 79... Kg4 {[%clk 0:01:06.3]} 80. Kg2
{[%clk 0:00:35.3]} 80... Kh4 {[%clk 0:01:07.8]} 81. Kg1 {[%clk 0:00:34.8]} 81...
Kh3 {[%clk 0:01:09.7]} 82. Kh1 {[%clk 0:00:35.8]} 82... Kg4 {[%clk 0:01:11.6]}
83. Kg2 {[%clk 0:00:36.8]} 83... Kf4 {[%clk 0:01:13.5]} 84. Kg1 {[%clk
0:00:37.4]} 84... Ke4 {[%clk 0:01:15]} 85. Kg2 {[%clk 0:00:37.3]} 85... Kf4
{[%clk 0:01:16.6]} 86. Kg1 {[%clk 0:00:37.5]} 86... Kg4 {[%clk 0:01:18.5]} 87.
Kg2 {[%clk 0:00:38.6]} 1/2-1/2

[Event "*** Titled Tuesday 3|2 Blitz (Early)"]
[Site "Chess.com"]
[Date "2017.01.03"]
[Round "5"]
[White "Zlatan56"]
[Black "Mischuk_D"]
[Result "1/2-1/2"]
[WhiteElo "2662"]
[BlackElo "2463"]
[TimeControl "180+2"]
[EndTime "12:04:02 PST"]
[Termination "Game drawn by agreement"]

1. Nf3 {[%clk 0:03:02]} 1... Nf6 {[%clk 0:03:00.5]} 2. g3 {[%clk 0:03:02.3]}
2... g6 {[%clk 0:03:01.6]} 3. b3 {[%clk 0:03:02.9]} 3... Bg7 {[%clk 0:03:01.8]}
4. Bb2 {[%clk 0:03:04.3]} 4... d5 {[%clk 0:03:02.9]} 5. c4 {[%clk 0:03:01.9]}
5... c6 {[%clk 0:03:03.2]} 6. Bg2 {[%clk 0:03:02.4]} 6... O-O {[%clk 0:03:04.3]}
7. O-O {[%clk 0:03:03.7]} 7... a5 {[%clk 0:03:04]} 8. Nc3 {[%clk 0:02:53]} 8...
Nbd7 {[%clk 0:02:52.8]} 9. d4 {[%clk 0:02:51.7]} 9... dxc4 {[%clk 0:02:50.3]}
10. bxc4 {[%clk 0:02:51.4]} 10... Nb6 {[%clk 0:02:49.9]} 11. Qd3 {[%clk
0:02:38.7]} 11... Be6 {[%clk 0:02:48.6]} 12. Nd2 {[%clk 0:02:36.5]} 12... a4
{[%clk 0:02:43.6]} 13. Rab1 {[%clk 0:02:36.3]} 13... Qc7 {[%clk 0:02:39]} 14.
Rfc1 {[%clk 0:02:32.9]} 14... Rfd8 {[%clk 0:02:37.3]} 15. d5 {[%clk 0:02:30.3]}
15... a3 {[%clk 0:02:24.7]} 16. Ba1 {[%clk 0:02:30.2]} 16... Bh6 {[%clk
0:02:02.4]} 17. e4 {[%clk 0:02:24.4]} 17... Bd7 {[%clk 0:01:49.3]} 18. h3 {[%clk
0:02:13]} 18... Bxd2 {[%clk 0:01:45]} 19. Qxd2 {[%clk 0:02:14.2]} 19... Nxc4
{[%clk 0:01:46.1]} 20. Qd4 {[%clk 0:02:14.6]} 20... b5 {[%clk 0:01:39]} 21. dxc6
{[%clk 0:01:56]} 21... Bxc6 {[%clk 0:01:39.4]} 22. Nd5 {[%clk 0:01:57.3]} 22...
Bxd5 {[%clk 0:01:36]} 23. exd5 {[%clk 0:01:59.2]} 23... Qa7 {[%clk 0:01:33.1]}
24. Rxb5 {[%clk 0:01:36.8]} 24... Qxd4 {[%clk 0:01:33.3]} 25. Bxd4 {[%clk
0:01:37.4]} 25... Nd6 {[%clk 0:01:35.2]} 26. Rbc5 {[%clk 0:01:31.8]} 26... Nf5
{[%clk 0:01:36]} 27. Bxf6 {[%clk 0:01:25]} 27... exf6 {[%clk 0:01:36.8]} 28. Rc7
{[%clk 0:01:24.9]} 28... Nd6 {[%clk 0:01:37.2]} 29. R1c6 {[%clk 0:01:19.6]}
29... f5 {[%clk 0:01:37.8]} 30. Re7 {[%clk 0:01:12.2]} 30... Kg7 {[%clk
0:01:31.7]} 31. Re3 {[%clk 0:01:12.5]} 31... Ra4 {[%clk 0:01:27.3]} 32. Bf3
{[%clk 0:01:08.2]} 32... Ne4 {[%clk 0:01:24.2]} 33. Rd3 {[%clk 0:00:57.9]} 33...
Nd6 {[%clk 0:01:16.8]} 34. Kg2 {[%clk 0:00:57.4]} 34... h5 {[%clk 0:01:17.6]}
35. h4 {[%clk 0:00:57.3]} 35... Rd7 {[%clk 0:01:18.4]} 36. Bd1 {[%clk 0:00:52]}
36... Ra5 {[%clk 0:01:18]} 37. Bb3 {[%clk 0:00:52.1]} 37... Kf6 {[%clk
0:01:15.9]} 38. Rdc3 {[%clk 0:00:51.7]} 38... Ke7 {[%clk 0:01:12.6]} 39. Rc7
{[%clk 0:00:49.9]} 39... Ra7 {[%clk 0:01:12.5]} 40. Rxd7+ {[%clk 0:00:45.9]}
40... Kxd7 {[%clk 0:01:12.8]} 41. f3 {[%clk 0:00:44.5]} 41... Nb5 {[%clk
0:01:10.1]} 42. Rc4 {[%clk 0:00:44.6]} 42... Nc7 {[%clk 0:01:05.7]} 43. Rc6
{[%clk 0:00:41.4]} 43... Ra5 {[%clk 0:01:03.9]} 44. Rf6 {[%clk 0:00:14.9]} 44...
Ke7 {[%clk 0:01:04.3]} 45. Rb6 {[%clk 0:00:13.7]} 45... Nxd5 {[%clk 0:01:03.6]}
46. Rb7+ {[%clk 0:00:14.9]} 46... Kf6 {[%clk 0:01:03.2]} 47. f4 {[%clk
0:00:15.7]} 47... Ke6 {[%clk 0:01:01.1]} 48. Kf3 {[%clk 0:00:16]} 48... Rc5
{[%clk 0:00:56.1]} 49. Ra7 {[%clk 0:00:16.1]} 49... f6 {[%clk 0:00:49.5]} 50.
Rxa3 {[%clk 0:00:16]} 50... Rc3+ {[%clk 0:00:49.6]} 51. Kf2 {[%clk 0:00:16.2]}
51... Rc5 {[%clk 0:00:43.1]} 52. Ra6+ {[%clk 0:00:15.6]} 52... Ke7 {[%clk
0:00:43.5]} 53. Ke2 {[%clk 0:00:16.2]} 53... Nc3+ {[%clk 0:00:42.2]} 54. Kf3
{[%clk 0:00:17.1]} 54... Ne4 {[%clk 0:00:42.9]} 55. Re6+ {[%clk 0:00:17.6]}
55... Kd7 {[%clk 0:00:43.1]} 56. Ra6 {[%clk 0:00:12.9]} 56... Rc3+ {[%clk
0:00:43.5]} 57. Ke2 {[%clk 0:00:13.9]} 57... Nxg3+ {[%clk 0:00:42.4]} 58. Ke1
{[%clk 0:00:14.7]} 58... Ne4 {[%clk 0:00:42.6]} 59. Bf7 {[%clk 0:00:13.5]} 59...
Rg3 {[%clk 0:00:34.2]} 60. a4 {[%clk 0:00:13.8]} 60... Ke7 {[%clk 0:00:34.6]}
61. Bg8 {[%clk 0:00:12.8]} 61... g5 {[%clk 0:00:34.8]} 62. fxg5 {[%clk
0:00:12.6]} 62... fxg5 {[%clk 0:00:35.6]} 63. hxg5 {[%clk 0:00:13.5]} 63... Nxg5
{[%clk 0:00:34.9]} 64. Bd5 {[%clk 0:00:13.5]} 64... Ne4 {[%clk 0:00:35.2]} 65.
a5 {[%clk 0:00:13.4]} 65... Ra3 {[%clk 0:00:35.7]} 66. Ra7+ {[%clk 0:00:13.3]}
66... Kd6 {[%clk 0:00:36.3]} 67. Bxe4 {[%clk 0:00:13.9]} 67... fxe4 {[%clk
0:00:36.6]} 68. a6 {[%clk 0:00:14.8]} 68... Ke5 {[%clk 0:00:35.5]} 69. Rh7
{[%clk 0:00:12.7]} 69... Kf4 {[%clk 0:00:34.6]} 70. Rxh5 {[%clk 0:00:12.4]}
70... Rxa6 {[%clk 0:00:34.8]} 71. Rh3 {[%clk 0:00:13.2]} 71... Ra2 {[%clk
0:00:33.9]} 72. Rb3 {[%clk 0:00:12.9]} 72... e3 {[%clk 0:00:32.5]} 73. Rb8
{[%clk 0:00:12.7]} 73... Ra1+ {[%clk 0:00:32.3]} 74. Ke2 {[%clk 0:00:12.8]}
74... Ra2+ {[%clk 0:00:34.2]} 75. Ke1 {[%clk 0:00:13.7]} 1/2-1/2